bitfinex-derivatives/quotes_ETHF0:USTF0_20210111
["timestamp","ask_amount","ask_price","bid_price","bid_amount"]
[1610346674642,2.0791,1089.4,1088.5,1.4181722]
[1610346675344,2.0791,1089.4,1089.2,4.00959]
[1610346675544,2.0791,1089.4,1088.5,1.4181722]
[1610346676144,2.0791,1089.4,1089.3,4.00959]
[1610346677147,2.0791,1089.4,1089.3,5.42683491]
[1610346677347,2.0791,1089.4,1089.3,1.41724491]
[1610346677548,6.90076105,1089.7,1089.3,1.41724491]
[1610346678148,2.89117105,1089.7,1089.3,1.41724491]
[1610346678448,2.89117105,1089.7,1088.5,1.41746581]
[1610346678647,2.89117105,1089.7,1088.9,4.00959]
[1610346679949,2.89117105,1089.7,1089.0,1.41724796]
[1610346681050,4.00959,1089.1,1089.0,5.42683796]
[1610346681252,2.89117105,1089.7,1089.0,4.00959]
[1610346682552,2.89117105,1089.7,1089.1,1.41736081]
[1610346683653,2.89117105,1089.7,1089.6,4.00959]
[1610346685559,2.89117105,1089.7,1088.8,1.41717245]
[1610346685858,2.89117105,1089.7,1089.6,1.41713639]
[1610346686059,2.89117105,1089.7,1089.6,5.42672639]
[1610346687363,2.89117105,1089.7,1089.6,1.41713639]
[1610346688662,6.90076105,1089.7,1089.3,4.00959]
[1610346689964,6.90076105,1089.7,1089.4,1.41722487]
[1610346690365,2.89117105,1089.7,1089.4,1.41722487]
[1610346691066,2.89117105,1089.7,1089.6,4.00959]
[1610346692770,2.89117105,1089.7,1089.6,5.42653229]
[1610346693169,2.89117105,1089.7,1089.6,1.41694229]
[1610346693770,2.89117105,1089.7,1089.6,5.42653229]
[1610346694070,2.89117105,1089.7,1089.6,4.00959]
[1610346695474,2.89117105,1089.7,1089.6,5.42590762]
[1610346695674,2.89117105,1089.7,1089.6,1.41631762]
[1610346696176,2.89117105,1089.7,1089.6,5.42590762]
[1610346698179,2.89117105,1089.7,1089.6,1.41631762]
[1610346698679,2.89117105,1089.7,1089.6,5.42590762]
[1610346700683,2.89117105,1089.7,1089.6,1.41631762]
[1610346701282,2.89117105,1089.7,1089.6,4.00959]
[1610346702786,2.89117105,1089.7,1089.6,5.42569091]
[1610346703187,2.89117105,1089.7,1089.6,1.41610091]
[1610346703787,2.89117105,1089.7,1089.6,5.42569091]
[1610346703987,2.89117105,1089.7,1089.6,35.42569091]
[1610346704187,2.89117105,1089.7,1089.6,34.00959]
[1610346705387,2.89117105,1089.7,1089.6,4.00959]
[1610346705587,2.89117105,1089.7,1089.6,35.42555952]
[1610346705788,2.89117105,1089.7,1089.6,31.41596952]
[1610346706187,1.04947105,1089.7,1089.6,31.41596952]
[1610346708295,1.04947105,1089.7,1089.6,35.42555952]
[1610346710095,1.04947105,1089.7,1089.6,37.59034724]
[1610346710294,2.3483,1090.4,1089.6,37.59034724]
[1610346710696,2.3483,1090.4,1089.7,2.16249351]
[1610346710896,2.3483,1090.4,1089.8,30.0]
[1610346711096,4.00959,1091.3,1089.9,2.16035613]
[1610346711296,4.00959,1091.3,1090.0,30.0]
[1610346712695,4.00959,1091.3,1090.1,31.41404811]
[1610346712995,4.00959,1091.3,1090.1,33.57130637]
[1610346713896,4.00959,1091.3,1090.2,2.15720038]
[1610346714095,4.00959,1091.3,1090.3,30.0]
[1610346714797,4.00959,1091.3,1090.3,32.15317302]
[1610346715396,4.00959,1091.3,1090.4,1.41374577]
[1610346715596,4.00959,1091.3,1090.4,5.53536306]
[1610346715798,4.00959,1091.3,1090.6,2.14585936]
[1610346715996,4.00959,1091.3,1090.7,30.0]
[1610346716200,6.0493,1092.3,1090.7,33.94089529]
[1610346716597,6.0493,1092.3,1090.9,30.0]
[1610346717397,6.0493,1092.3,1090.9,32.14168246]
[1610346717598,6.0493,1092.3,1090.9,30.0]
[1610346718398,6.0493,1092.3,1091.0,1.41332217]
[1610346719799,6.0493,1092.3,1090.5,31.41340354]
[1610346720000,6.0493,1092.3,1090.5,1.41340354]
[1610346720200,7.8565,1092.3,1090.5,3.56785364]
[1610346720603,7.8565,1092.3,1090.5,1.41340354]
[1610346721403,7.8565,1092.3,1090.6,1.41369953]
[1610346722002,7.8565,1092.3,1090.9,4.00959]
[1610346722202,7.8565,1092.3,1090.6,1.41369953]
[1610346722803,7.8565,1092.3,1091.0,1.41444409]
[1610346723002,5.7535,1092.2,1091.0,1.41444409]
[1610346723403,5.7535,1092.2,1088.9,3.82375439]
[1610346723404,5.7535,1092.2,1089.5,2.19015789]
[1610346723603,5.7535,1092.2,1089.3,2.19490357]
[1610346724005,5.7535,1092.2,1089.9,4.00959]
[1610346724204,5.7535,1092.2,1089.6,1.415508]
[1610346725607,5.7535,1092.2,1088.9,1.41608513]
[1610346725806,35.7535,1092.2,1088.9,1.41608513]
[1610346726006,4.00959,1089.1,1088.9,1.41608513]
[1610346726413,5.95979,1089.1,1088.9,1.41608513]
[1610346726808,5.95979,1089.1,1088.5,1.41667038]
[1610346728010,4.00959,1088.9,1088.6,4.00959]
[1610346728209,4.00959,1088.9,1088.2,1.41689489]
[1610346729112,1.9502,1089.1,1088.2,1.41689489]
[1610346729510,1.9502,1089.1,1088.0,1.41723014]
[1610346730010,4.00959,1088.5,1088.4,4.00959]
[1610346730209,1.9831,1088.5,1088.4,4.00959]
[1610346731011,1.9831,1088.5,1088.4,34.00959]
[1610346731211,2.1606,1088.8,1088.4,35.42638483]
[1610346732011,2.1606,1088.8,1088.7,4.00959]
[1610346732211,5.7885,1089.6,1088.7,4.00959]
[1610346732411,5.7885,1089.6,1088.7,5.66189]
[1610346734111,5.7885,1089.6,1089.5,4.00959]
[1610346734713,5.7885,1089.6,1088.8,1.41614486]
[1610346734911,8.183,1089.6,1088.8,1.41614486]
[1610346736014,4.00959,1089.3,1089.1,4.00959]
[1610346736215,6.24279,1089.3,1088.8,1.41614486]
[1610346736817,6.24279,1089.3,1088.4,1.41667635]
[1610346737816,2.2332,1089.3,1088.4,1.41667635]
[1610346738016,2.2332,1089.3,1089.2,4.00959]
[1610346738616,2.2332,1089.3,1088.4,1.41667635]
[1610346740016,2.2332,1089.3,1088.6,4.00959]
[1610346740017,4.00959,1089.2,1088.6,4.00959]
[1610346740416,4.00959,1089.2,1088.4,1.41667635]
[1610346741020,4.00959,1089.2,1088.7,1.4170957]
[1610346742121,4.00959,1088.8,1088.7,1.4170957]
[1610346742321,6.21659,1088.8,1088.2,5.42689919]
[1610346742520,6.21659,1088.8,1088.2,1.41730919]
[1610346743623,2.207,1088.8,1088.2,1.41730919]
[1610346744021,2.207,1088.8,1088.7,4.00959]
[1610346744221,2.2332,1089.3,1088.7,4.00959]
[1610346744621,2.3945,1089.6,1088.7,4.00959]
[1610346744821,5.9118,1090.5,1088.7,4.00959]
[1610346745022,5.9118,1090.5,1088.7,34.00959]
[1610346745422,5.9118,1090.5,1088.8,1.41613794]
[1610346745722,5.9118,1090.5,1088.8,3.72183794]
[1610346745925,5.9118,1090.5,1088.9,30.0]
[1610346746123,5.9118,1090.5,1090.4,4.00959]
[1610346747928,5.9118,1090.5,1090.4,5.58719]
[1610346748127,5.9118,1090.5,1090.4,7.00201521]
[1610346748329,5.9118,1090.5,1090.4,37.00201521]
[1610346749430,6.0309,1092.2,1090.4,37.00201521]
[1610346750029,6.0309,1092.2,1092.1,4.00959]
[1610346750630,6.0309,1092.2,1091.0,2.0021]
[1610346751430,6.0309,1092.2,1090.4,1.5776]
[1610346751831,6.0309,1092.2,1089.7,2.034]
[1610346752034,6.0309,1092.2,1089.1,2.7092598]
[1610346752232,6.0309,1092.2,1088.9,2.71243448]
[1610346752431,6.0309,1092.2,1089.4,2.3997]
[1610346752631,6.0309,1092.2,1089.8,1.41522963]
[1610346754030,6.0309,1092.2,1089.5,1.41549181]
[1610346754230,5.85229,1090.4,1090.2,4.00959]
[1610346754433,5.85229,1090.4,1089.5,1.41549181]
[1610346754931,1.8427,1090.4,1089.5,1.41549181]
[1610346755331,1.5516,1090.8,1089.5,1.41549181]
[1610346756131,1.5516,1090.8,1090.7,4.00959]
[1610346756331,6.0309,1092.2,1090.7,4.00959]
[1610346756631,6.0309,1092.2,1090.7,36.16179]
[1610346757131,6.0309,1092.2,1090.7,37.57569667]
[1610346757533,6.0309,1092.2,1090.7,7.57569667]
[1610346758132,4.00959,1091.5,1091.2,4.00959]
[1610346759732,1.6311,1091.7,1091.2,4.00959]
[1610346760133,1.6311,1091.7,1091.6,4.00959]
[1610346761433,6.0309,1092.2,1091.6,4.00959]
[1610346762135,6.0309,1092.2,1092.1,4.00959]
[1610346764339,6.0309,1092.2,1091.1,2.4011]
[1610346764941,6.0309,1092.2,1091.3,60.0532]
[1610346765742,6.0309,1092.2,1091.4,1.41362016]
[1610346766142,4.00959,1091.7,1091.4,5.42321016]
[1610346766546,4.00959,1091.7,1091.4,1.41362016]
[1610346767346,4.00959,1091.7,1090.5,64.5044]
[1610346768147,4.00959,1090.9,1090.5,64.5044]
[1610346768347,1.8592,1091.8,1090.5,64.5044]
[1610346768947,1.8592,1091.8,1090.6,1.41466406]
[1610346770149,4.00959,1091.1,1090.6,5.42425406]
[1610346770350,1.8592,1091.8,1090.6,5.42425406]
[1610346771251,1.8592,1091.8,1090.6,7.25675406]
[1610346771752,6.0309,1092.2,1090.6,7.25675406]
[1610346771951,6.0309,1092.2,1090.7,1.41406428]
[1610346772151,4.00959,1092.0,1091.8,4.00959]
[1610346772550,5.60559,1092.0,1091.8,4.00959]
[1610346772751,5.60559,1092.0,1090.7,1.41406428]
[1610346773352,5.60559,1092.0,1089.7,1.7044]
[1610346773953,5.60559,1092.0,1089.4,32.3997]
[1610346774152,4.00959,1091.5,1091.2,4.00959]
[1610346774553,6.19889,1091.5,1089.4,96.8168]
[1610346774753,6.19889,1091.5,1089.5,1.41436858]
[1610346776754,2.1893,1091.5,1090.0,4.00959]
[1610346776954,2.1893,1091.5,1089.5,1.41436858]
[1610346778354,30.0,1091.4,1089.0,58.8948]
[1610346778554,30.0,1091.4,1087.7,2.71985068]
[1610346778754,30.0,1091.4,1087.5,2.72025098]
[1610346778954,30.0,1091.4,1087.3,2.72068234]
[1610346779154,2.1893,1091.5,1087.3,2.72068234]
[1610346779355,36.79367663,1091.3,1088.2,1.41655255]
[1610346779555,8.60437663,1091.3,1088.2,1.41655255]
[1610346780355,38.60437663,1091.3,1088.2,1.41655255]
[1610346781057,30.0,1091.1,1087.1,1.41678941]
[1610346781457,4.00959,1089.6,1088.3,4.00959]
[1610346781856,6.37399,1089.6,1088.3,4.00959]
[1610346783657,6.37399,1089.6,1087.7,70.0967]
[1610346784259,2.3644,1089.6,1087.7,70.0967]
[1610346785560,2.3442,1089.9,1087.7,70.0967]
[1610346785961,2.3442,1089.9,1087.7,71.8903]
[1610346786562,2.3442,1089.9,1087.8,1.41652393]
[1610346787364,4.00959,1089.1,1088.8,4.00959]
[1610346787766,6.22039,1089.6,1088.8,4.00959]
[1610346788868,2.2108,1089.6,1088.7,1.745]
[1610346789269,2.2108,1089.6,1089.1,4.00959]
[1610346790070,2.3442,1089.9,1089.1,6.33489]
[1610346790270,68.2825,1090.2,1089.1,6.33489]
[1610346791371,68.2825,1090.2,1089.1,2.3253]
[1610346791571,6.307,1090.4,1089.1,10.9037]
[1610346791773,6.307,1090.4,1090.3,4.00959]
[1610346792772,1.9347,1091.2,1090.3,4.00959]
[1610346792971,1.8391,1094.5,1090.3,4.00959]
[1610346793171,64.597,1092.3,1090.3,4.00959]
[1610346793772,64.597,1092.3,1090.0,1.7647]
[1610346794173,66.5653,1092.3,1090.0,1.7647]
[1610346794371,4.00959,1091.9,1091.7,4.00959]
[1610346794573,4.00959,1091.9,1090.0,1.7647]
[1610346794771,6.47409,1091.9,1090.0,1.7647]
[1610346795773,2.4645,1091.9,1090.0,1.7647]
[1610346796374,2.4645,1091.9,1091.8,4.00959]
[1610346797275,2.4645,1091.9,1090.7,1.8979]
[1610346798876,2.4645,1091.9,1091.8,4.00959]
[1610346800079,1.9683,1092.3,1091.1,55.9984]
[1610346800276,4.00959,1092.6,1091.1,55.9984]
[1610346800877,66.5788,1093.2,1091.1,55.9984]
[1610346801477,4.00959,1091.6,1091.4,4.00959]
[1610346801878,4.00959,1091.6,1091.1,55.9984]
[1610346802479,4.00959,1091.6,1090.4,2.0437]
[1610346802879,4.00959,1091.6,1090.0,1.7647]
[1610346803079,9.69779,1091.6,1089.1,2.3253]
[1610346803279,9.69779,1091.6,1088.7,2.67892883]
[1610346803479,5.6882,1091.6,1088.7,2.67892883]
[1610346803683,5.6882,1091.6,1088.5,2.68645829]
[1610346803884,4.00959,1089.9,1089.7,4.00959]
[1610346804285,1.562,1089.9,1089.7,4.00959]
[1610346805383,1.562,1089.9,1088.3,6.09984819]
[1610346805984,4.00959,1089.5,1089.3,4.00959]
[1610346806786,2.3876,1089.6,1089.3,4.00959]
[1610346806984,2.3876,1089.6,1088.6,1.5221]
[1610346807584,2.3876,1089.6,1089.4,1.41495992]
[1610346807985,4.00959,1089.5,1089.4,1.41495992]
[1610346808690,2.3876,1089.6,1089.4,1.41495992]
[1610346808892,2.3876,1089.6,1089.1,1.41496757]
[1610346810486,2.3876,1089.6,1089.5,4.00959]
[1610346811387,1.562,1089.9,1089.1,1.41496757]
[1610346811588,4.00959,1090.1,1089.5,1.41479396]
[1610346812386,71.077,1090.9,1089.5,1.41479396]
[1610346812986,5.85349,1089.6,1089.5,1.41479396]
[1610346813693,5.85349,1089.6,1088.7,1.4152682]
[1610346814890,1.8439,1089.6,1088.7,1.4152682]
[1610346815090,1.8439,1089.6,1088.6,72.0808]
[1610346815390,4.00959,1088.7,1088.6,72.0808]
[1610346816190,4.00959,1088.7,1086.3,2.71504256]
[1610346816790,5.9913,1088.6,1086.2,2.72182042]
[1610346816989,8.306,1088.6,1086.2,2.72182042]
[1610346817190,2.3147,1088.6,1086.1,2.72546623]
[1610346817592,8.5983,1088.6,1086.0,2.73068865]
[1610346817993,4.00959,1087.4,1086.6,4.00959]
[1610346818193,5.67679,1087.4,1086.6,4.00959]
[1610346819294,5.67679,1087.4,1086.7,1.41741916]
[1610346819896,1.6672,1087.4,1086.7,1.41741916]
[1610346820495,1.6672,1087.4,1087.0,4.00959]
[1610346821096,2.3147,1088.6,1087.0,4.00959]
[1610346822098,5.9985,1088.8,1087.0,4.00959]
[1610346822500,5.9985,1088.8,1086.8,78.6348]
[1610346822700,1.5249,1088.9,1087.1,3.75439305]
[1610346823099,4.00959,1089.1,1088.5,4.00959]
[1610346823498,6.14739,1089.1,1087.8,1.6898]
[1610346824500,6.14739,1089.1,1087.1,2.3381]
[1610346824900,12.17829,1089.1,1087.1,2.3381]
[1610346825100,8.1687,1089.1,1087.1,2.3381]
[1610346825301,8.1687,1089.1,1087.2,1.4168343]
[1610346825502,4.00959,1087.3,1087.2,1.4168343]
[1610346825702,5.73079,1087.3,1087.2,1.4168343]
[1610346827505,1.7212,1087.3,1087.2,1.4168343]
[1610346828005,5.73079,1087.3,1087.2,1.4168343]
[1610346828206,5.73079,1087.3,1087.1,65.4194]
[1610346829708,69.97939,1087.3,1085.5,75.9015]
[1610346830107,65.9698,1087.3,1085.5,75.9015]
[1610346830507,4.00959,1085.8,1085.6,4.00959]
[1610346831107,4.00959,1085.8,1085.6,5.42767692]
[1610346831307,4.00959,1085.8,1085.6,1.41808692]
[1610346832507,1.9576,1086.5,1085.6,1.41808692]
[1610346833112,4.00959,1085.7,1085.6,1.41808692]
[1610346834313,5.59909,1085.7,1085.6,1.41808692]
[1610346835115,1.5895,1085.7,1085.6,1.41808692]
[1610346835314,1.5895,1085.7,1085.5,75.9015]
[1610346835516,4.00959,1085.6,1085.5,75.9015]
[1610346836714,4.00959,1085.6,1083.5,2.72136862]
[1610346836715,57.8522,1085.5,1083.5,52.6023]
[1610346838016,4.00959,1083.6,1083.5,52.6023]
[1610346838618,2.322,1084.2,1083.5,52.6023]
[1610346839218,57.8522,1085.5,1083.5,52.6023]
[1610346839416,57.8522,1085.5,1083.5,55.33747261]
[1610346839817,57.8522,1085.5,1083.8,2.7309453]
[1610346840018,5.6888,1085.6,1083.8,4.7006453]
[1610346840217,7.5447,1085.6,1083.8,4.7006453]
[1610346840617,4.00959,1084.4,1083.8,4.7006453]
[1610346841020,4.00959,1084.4,1083.9,1.4201049]
[1610346841821,5.88149,1084.4,1083.9,1.4201049]
[1610346842622,4.00959,1084.0,1083.9,1.4201049]
[1610346843421,4.00959,1084.0,1083.3,2.2067]
[1610346843921,4.00959,1084.0,1083.1,4.00959]
[1610346844321,1.5963,1084.2,1083.1,4.00959]
[1610346844523,4.00959,1083.9,1083.3,4.00959]
[1610346844720,1.8466,1083.9,1083.3,4.00959]
[1610346844922,2.0584,1084.5,1083.3,4.00959]
[1610346845123,2.0584,1084.5,1083.3,5.92749]
[1610346846125,53.9975,1085.0,1083.3,5.92749]
[1610346846324,53.9975,1085.0,1083.3,8.63809586]
[1610346846522,53.9975,1085.0,1083.5,2.70762702]
[1610346846724,53.9975,1085.0,1084.8,4.00959]
[1610346846924,51.8117,1085.0,1084.8,4.00959]
[1610346847925,51.8117,1085.0,1084.9,1.41925608]
[1610346849225,51.8117,1085.0,1084.9,3.06045608]
[1610346849426,1.8186,1088.8,1084.9,3.06045608]
[1610346850128,1.8422,1088.1,1084.9,3.06045608]
[1610346850528,1.8422,1088.1,1084.9,1.41925608]
[1610346850729,4.00959,1085.0,1084.9,1.41925608]
[1610346851129,4.00959,1085.0,1084.3,2.4061]
[1610346852129,1.9973,1085.1,1083.5,2.72116409]
[1610346852330,1.9973,1085.1,1084.4,1.41929554]
[1610346852530,1.9973,1085.1,1084.4,3.35429554]
[1610346852732,4.00959,1085.1,1084.7,1.6764]
[1610346852931,4.00959,1085.1,1084.4,3.35429554]
[1610346853332,4.00959,1085.1,1084.4,1.41929554]
[1610346854130,4.00959,1085.1,1084.5,1.41960765]
[1610346854532,5.82759,1085.1,1084.5,1.41960765]
[1610346854732,4.00959,1084.6,1084.5,1.41960765]
[1610346854935,5.52499,1084.6,1084.5,1.41960765]
[1610346855333,5.52499,1084.6,1082.9,1.42012664]
[1610346856636,5.52499,1084.6,1084.3,4.00959]
[1610346856835,5.52499,1084.6,1083.1,1.9895]
[1610346858036,5.52499,1084.6,1083.2,1.4203778]
[1610346858435,6.2489,1084.5,1083.2,1.4203778]
[1610346858636,4.00959,1083.5,1083.2,1.4203778]
[1610346859236,1.9355,1083.6,1083.2,1.4203778]
[1610346859436,1.9355,1083.6,1082.9,1.42096576]
[1610346860638,4.00959,1083.4,1082.9,1.42096576]
[1610346862243,1.9355,1083.6,1082.7,1.42132051]
[1610346862643,4.00959,1084.1,1083.5,4.00959]
[1610346863245,4.00959,1084.1,1082.9,2.2664]
[1610346863643,5.73009,1084.1,1082.9,2.2664]
[1610346864644,5.73009,1084.1,1083.4,4.00959]
[1610346864645,4.00959,1083.7,1083.4,4.00959]
[1610346864851,4.00959,1083.7,1083.0,1.42129122]
[1610346866650,4.00959,1083.4,1083.0,5.43088122]
[1610346866846,4.00959,1083.4,1083.0,1.42129122]
[1610346868548,4.00959,1083.4,1082.7,1.42167767]
[1610346868747,1.8093,1083.5,1083.1,4.00959]
[1610346869147,1.8093,1083.5,1083.1,3.89259]
[1610346869450,1.8093,1083.5,1082.7,1.42167767]
[1610346869746,1.8093,1083.5,1082.4,1.688]
[1610346870647,4.00959,1083.3,1082.9,4.00959]
[1610346871449,1.8093,1083.5,1082.9,4.00959]
[1610346872252,2.354,1083.8,1082.9,4.00959]
[1610346872452,6.2819,1084.0,1082.5,1.42135408]
[1610346872653,4.00959,1083.1,1083.0,1.42129748]
[1610346874055,4.00959,1083.1,1082.7,1.42148896]
[1610346874455,4.00959,1083.1,1082.6,1.43107896]
[1610346874655,4.00959,1082.9,1082.4,1.688]
[1610346874856,4.00959,1082.9,1082.1,4.00959]
[1610346875456,4.00959,1082.9,1082.5,1.42154143]
[1610346876661,1.909,1083.4,1082.6,4.00959]
[1610346878068,6.2819,1084.0,1082.7,1.42130947]
[1610346878668,4.00959,1083.2,1082.7,1.42130947]
[1610346879364,4.00959,1083.2,1082.6,1.42185128]
[1610346880664,4.00959,1082.7,1082.5,1.42216228]
[1610346881967,2.131,1083.4,1082.2,1.42188908]
[1610346882165,2.131,1083.4,1082.5,1.6547]
[1610346882666,4.00959,1083.2,1083.0,4.00959]
[1610346882967,4.00959,1083.2,1082.5,1.6547]
[1610346883368,4.00959,1083.2,1083.1,1.42178531]
[1610346884770,4.00959,1083.2,1082.1,4.00959]
[1610346886170,4.00959,1083.2,1082.2,1.42229185]
[1610346886870,4.00959,1082.7,1082.6,4.00959]
[1610346887471,1.6319,1083.1,1082.6,5.43170431]
[1610346888271,2.131,1083.4,1082.6,5.43170431]
[1610346888470,6.2819,1084.0,1082.6,5.43170431]
[1610346888871,4.00959,1083.9,1083.7,4.00959]
[1610346889276,6.2819,1084.0,1083.7,4.00959]
[1610346889678,6.2819,1084.0,1082.8,2.1174]
[1610346890276,6.2819,1084.0,1083.8,1.42182782]
[1610346890777,4.00959,1083.9,1083.8,1.42182782]
[1610346891980,4.00959,1083.9,1083.0,1.4221461]
[1610346892781,4.00959,1083.6,1083.3,4.00959]
[1610346892981,6.35879,1083.6,1083.3,4.00959]
[1610346893181,6.35879,1083.6,1083.0,1.4221461]
[1610346894684,6.35879,1083.6,1082.7,1.42239721]
[1610346894882,4.00959,1082.8,1082.7,1.42239721]
[1610346897384,4.00959,1082.8,1082.3,4.00959]
[1610346898690,2.1379,1082.9,1082.4,1.422509]
[1610346898888,2.1379,1082.9,1082.5,4.00959]
[1610346899093,2.1379,1082.9,1082.4,1.422509]
[1610346900089,2.1379,1082.9,1082.2,1.42218524]
[1610346900487,13.0,1082.5,1082.1,60.2727]
[1610346900687,14.8604,1082.5,1082.1,60.2727]
[1610346900888,4.00959,1082.2,1080.8,59.2359]
[1610346901088,4.00959,1082.2,1080.1,4.00959]
[1610346901287,4.00959,1082.2,1079.6,2.73181795]
[1610346901288,5.9746,1082.1,1079.4,2.7351303]
[1610346901488,4.00959,1082.2,1079.2,6.14293555]
[1610346901689,7.6763,1082.1,1080.4,54.8284]
[1610346901889,7.6763,1082.1,1079.2,3.405]
[1610346902089,7.6763,1082.1,1079.0,2.74317364]
[1610346902290,30.0,1082.0,1078.8,2.74795424]
[1610346902690,30.0,1082.0,1078.6,2.75017572]
[1610346902891,4.00959,1078.8,1078.7,4.00959]
[1610346903090,4.00959,1078.8,1078.4,2.75344372]
[1610346903291,4.00959,1078.8,1078.3,2.75380277]
[1610346903692,4.00959,1078.8,1078.1,2.75563831]
[1610346904093,4.00959,1078.8,1077.9,3.405]
[1610346904293,4.00959,1078.8,1078.4,1.42607134]
[1610346904895,4.00959,1078.5,1078.4,1.42607134]
[1610346905096,5.62879,1078.5,1078.4,1.42607134]
[1610346905896,5.62879,1078.5,1077.2,2.75955866]
[1610346906097,5.62879,1078.5,1077.0,2.21225601]
[1610346906298,5.62879,1078.5,1076.8,2.21316324]
[1610346906699,5.62879,1078.5,1076.5,58.35837209]
[1610346906700,70.2766,1078.4,1076.5,58.35837209]
[1610346906899,4.00959,1076.6,1076.5,56.1421]
[1610346908701,2.0121,1077.1,1076.5,56.1421]
[1610346908903,2.0121,1077.1,1076.5,60.15169]
[1610346909303,2.0121,1077.1,1076.5,56.1421]
[1610346910905,4.00959,1076.9,1076.5,56.1421]
[1610346912206,4.00959,1076.9,1076.5,43.1421]
[1610346912406,4.00959,1076.9,1075.6,1.64725398]
[1610346912805,4.00959,1076.9,1075.5,1.64525215]
[1610346913005,2.0121,1077.1,1075.5,5.65484215]
[1610346913205,1.5581,1077.4,1075.5,5.65484215]
[1610346913605,1.5581,1077.4,1075.5,1.64525215]
[1610346913805,1.5581,1077.4,1075.7,1.64159658]
[1610346914205,1.5581,1077.4,1075.4,1.5332]
[1610346914605,1.5581,1077.4,1075.3,1.64412692]
[1610346915006,4.00959,1075.5,1075.3,1.64412692]
[1610346915406,4.00959,1075.5,1075.2,1.6400334]
[1610346915807,4.00959,1075.5,1075.1,1.64012393]
[1610346916809,4.00959,1075.5,1075.3,1.63773282]
[1610346917008,1.6859,1075.7,1075.0,1.6414747]
[1610346917408,1.6859,1075.7,1075.2,1.63878201]
[1610346917609,1.8917,1076.0,1075.2,1.63878201]
[1610346918608,1.8917,1076.0,1075.1,4.11169162]
[1610346918909,4.00959,1075.2,1075.1,4.11169162]
[1610346919109,4.00959,1075.2,1074.6,2.332]
[1610346919311,4.00959,1075.2,1075.0,1.6444668]
[1610346919710,4.00959,1075.2,1074.7,1.64676205]
[1610346919909,5.93659,1075.2,1074.4,1.64782145]
[1610346920309,5.93659,1075.2,1073.4,3.84491673]
[1610346920310,7.80059,1075.2,1073.6,1.65366056]
[1610346920510,5.93659,1075.2,1073.6,1.65366056]
[1610346920713,5.93659,1075.2,1073.4,1.65378503]
[1610346920911,4.00959,1073.5,1073.3,1.65471079]
[1610346921712,4.00959,1073.5,1073.3,2.74605292]
[1610346921913,4.00959,1073.5,1073.1,70.59329761]
[1610346922311,4.00959,1073.5,1073.1,68.9421]
[1610346922912,4.00959,1073.2,1073.1,68.9421]
[1610346923313,5.98499,1073.2,1073.1,68.9421]
[1610346924312,4.00959,1073.2,1073.1,68.9421]
[1610346924513,2.0025,1073.9,1073.0,0.25]
[1610346924712,1.9047,1074.3,1073.0,2.3782]
[1610346924913,4.00959,1073.7,1073.5,4.00959]
[1610346925112,1.8451,1074.5,1073.5,4.00959]
[1610346925113,2.252,1074.7,1073.5,4.00959]
[1610346925313,5.9947,1074.9,1073.5,5.78839]
[1610346926714,5.9947,1074.9,1073.6,1.64698359]
[1610346926915,5.9947,1074.9,1074.8,4.00959]
[1610346928315,59.907,1075.7,1074.8,4.00959]
[1610346928915,59.907,1075.7,1075.2,4.00959]
[1610346928916,4.00959,1075.6,1075.2,4.00959]
[1610346929515,59.907,1075.7,1075.2,4.00959]
[1610346929715,59.907,1075.7,1075.2,6.09189]
[1610346930719,1.8811,1077.5,1075.2,6.09189]
[1610346930919,4.00959,1076.9,1075.9,4.00959]
[1610346931119,5.88129,1076.9,1075.9,4.00959]
[1610346931320,5.88129,1076.9,1075.2,2.0823]
[1610346931719,7.63739,1076.9,1075.3,1.4299761]
[1610346932922,4.00959,1075.4,1075.3,1.4299761]
[1610346933123,4.00959,1075.4,1074.9,2.2324]
[1610346933523,4.00959,1075.4,1074.6,2.3717]
[1610346933723,4.00959,1075.4,1073.8,1.63406058]
[1610346934424,4.00959,1075.4,1073.9,1.43143412]
[1610346934625,5.89699,1075.4,1073.9,1.43143412]
[1610346934825,5.89699,1075.4,1073.9,3.49813412]
[1610346935026,1.8874,1075.4,1073.9,3.49813412]
[1610346935930,2.058,1075.7,1074.0,1.43177918]
[1610346937032,4.00959,1074.1,1074.0,1.43177918]
[1610346939035,7.6388,1076.1,1074.0,1.43177918]
[1610346939435,1.8524,1076.1,1074.0,1.43177918]
[1610346940133,70.289,1076.2,1074.0,1.43177918]
[1610346941035,70.289,1076.2,1075.3,4.00959]
[1610346941235,70.289,1076.2,1075.3,6.49179]
[1610346941836,72.1663,1076.2,1075.3,6.49179]
[1610346942035,70.289,1076.2,1075.3,6.49179]
[1610346942836,70.289,1076.2,1075.4,1.42983525]
[1610346943036,74.29859,1076.2,1075.5,4.00959]
[1610346943236,5.85569,1076.2,1075.5,4.00959]
[1610346943438,1.8461,1076.2,1075.5,4.00959]
[1610346943637,52.925,1077.5,1075.5,4.00959]
[1610346944238,52.925,1077.5,1075.6,1.42962618]
[1610346944439,52.925,1077.5,1075.6,3.29722618]
[1610346945039,4.00959,1075.9,1075.6,3.29722618]
[1610346945242,1.8664,1077.8,1075.6,3.29722618]
[1610346945639,1.8664,1077.8,1075.7,1.42998841]
[1610346946941,4.00959,1076.5,1076.3,4.00959]
[1610346947141,4.00959,1076.5,1075.7,1.42998841]
[1610346949042,4.00959,1075.8,1075.7,1.42998841]
[1610346949843,4.00959,1075.8,1075.6,1.8676]
[1610346950045,4.00959,1075.8,1075.3,2.4822]
[1610346950244,4.00959,1075.8,1073.9,2.0667]
[1610346950644,4.00959,1075.8,1073.5,1.7788]
[1610346950846,6.05639,1075.8,1073.5,1.7788]
[1610346951046,4.00959,1073.6,1073.0,0.25]
[1610346952846,4.00959,1073.6,1073.1,3.63032158]
[1610346953047,4.00959,1073.2,1073.1,3.63032158]